bitfinex/quotes_ETHUSD_20251213
["timestamp","ask_amount","ask_price","bid_price","bid_amount"]
[1765642703736,0.80721748,3108.4,3108.3,0.9668]
[1765642705757,0.80721748,3108.4,3108.3,0.5008]
[1765642705960,4.02430665,3108.4,3108.3,0.5008]
[1765642706133,10.40262128,3108.4,3108.3,0.002]
[1765642706333,5.9757122,3108.4,3108.3,0.002]
[1765642706562,5.5210122,3108.4,3108.3,0.4998]
[1765642706735,0.29921748,3108.4,3108.3,0.4998]
[1765642706935,0.80721748,3108.4,3108.3,0.9662]
[1765642707560,0.29921748,3108.4,3108.3,0.9662]
[1765642708068,0.80721748,3108.4,3108.3,0.9662]
[1765642708558,0.29921748,3108.4,3108.3,0.9662]
[1765642708763,0.80721748,3108.4,3108.3,1.40257951]
[1765642710669,0.29921748,3108.4,3108.3,1.40257951]
[1765642710874,0.80721748,3108.4,3108.3,1.40257951]
[1765642711271,0.8069374,3108.4,3108.3,0.9662]
[1765642712853,0.8069374,3108.4,3108.3,0.4998]
[1765642713615,4.02402657,3108.4,3108.3,0.4998]
[1765642713753,4.47872657,3108.4,3108.3,0.002]
[1765642713955,4.96442657,3108.4,3108.3,0.002]
[1765642714473,6.25393729,3108.4,3108.3,0.002]
[1765642714679,5.76823729,3108.4,3108.3,0.002]
[1765642716383,6.25393729,3108.4,3108.3,0.002]
[1765642718090,5.76823729,3108.4,3108.3,0.002]
[1765642721595,5.31353729,3108.4,3108.3,0.4998]
[1765642721892,4.02402657,3108.4,3108.3,0.4998]
[1765642722083,4.47872657,3108.4,3108.3,0.002]
[1765642726407,0.8069374,3108.4,3108.3,0.002]
[1765642726708,0.2989374,3108.4,3108.3,0.4998]
[1765642727004,0.8069374,3108.4,3108.3,0.4998]
[1765642727403,0.8069374,3108.4,3108.3,0.9662]
[1765642733001,0.80720118,3108.4,3108.3,0.9662]
[1765642739806,0.80720118,3108.4,3108.3,0.4998]
[1765642740020,0.80720118,3108.4,3108.3,0.9829]
[1765642740229,0.29920118,3108.4,3108.3,0.9829]
[1765642740525,0.80720118,3108.4,3108.3,0.9829]
[1765642741822,0.80720118,3108.4,3108.3,0.4998]
[1765642742517,6.2920768,3108.4,3108.3,0.002]
[1765642745917,11.0054617,3108.4,3108.3,0.002]
[1765642754737,6.2920768,3108.4,3108.3,0.002]
[1765642759719,5.8126768,3108.4,3108.3,0.002]
[1765642759919,4.60476564,3108.4,3108.3,0.4919]
[1765642761320,5.56796564,3108.4,3108.3,0.002]
[1765642761960,39.05388449,3108.4,3108.3,0.002]
[1765642762848,39.18277268,3108.4,3108.3,0.002]
[1765642763217,0.405504,3108.3,3108.0,0.002]
[1765642763417,5.81477714,3108.1,3108.0,0.002]
[1765642763655,15.26120132,3108.1,3108.0,0.002]
[1765642763820,15.75420132,3108.1,3108.0,0.002]
[1765642764022,16.24830132,3108.1,3108.0,0.002]
[1765642764448,20.33168432,3108.1,3108.0,0.002]
[1765642764641,21.16311247,3108.1,3108.0,0.002]
[1765642765226,24.38051216,3108.1,3108.0,0.002]
[1765642765532,31.59269616,3108.1,3108.0,0.002]
[1765642765931,31.34929616,3108.1,3108.0,0.002]
[1765642766937,36.06379401,3108.1,3108.0,0.002]
[1765642767260,17.02965531,3108.1,3108.0,0.002]
[1765642767553,17.02965531,3108.1,3108.0,0.9571]
[1765642767554,0.79330118,3108.1,3108.0,0.9571]
[1765642767717,0.80720118,3108.1,3108.0,0.9571]
[1765642768450,0.29920118,3108.1,3108.0,0.9571]
[1765642769748,0.29920118,3108.1,3108.0,4.17460321]
[1765642770166,0.29920118,3108.1,3108.0,0.9571]
[1765642770533,0.29920118,3108.1,3108.0,1.37458028]
[1765642770735,0.29920118,3108.1,3108.0,0.4681]
[1765642771652,0.29920118,3108.1,3108.0,0.9571]
[1765642773452,0.80720118,3108.1,3108.0,0.9571]
[1765642773649,0.80720118,3108.1,3108.0,0.002]
[1765642773852,5.07477616,3108.1,3108.0,0.002]
[1765642774045,6.43347974,3108.1,3108.0,0.002]
[1765642774641,1.38767647,3108.1,3108.0,0.9571]
[1765642775842,0.87967647,3108.1,3108.0,0.9571]
[1765642776047,1.38767647,3108.1,3108.0,0.9571]
[1765642779473,4.60507616,3108.1,3108.0,0.4681]
[1765642779769,4.60507616,3108.1,3108.0,0.9571]
[1765642779950,4.60507616,3108.1,3108.0,0.4681]
[1765642780153,5.07477616,3108.1,3108.0,0.002]
[1765642780354,5.53127616,3108.1,3108.0,0.002]
[1765642781077,5.07477616,3108.1,3108.0,0.002]
[1765642781273,1.38767647,3108.1,3108.0,0.4681]
[1765642781646,1.38767647,3108.1,3108.0,0.9571]
[1765642782479,4.60507616,3108.1,3108.0,0.9571]
[1765642783276,1.38767647,3108.1,3108.0,0.9571]
[1765642783862,0.87967647,3108.1,3108.0,0.9571]
[1765642784178,1.38767647,3108.1,3108.0,0.9571]
[1765642784979,4.60507616,3108.1,3108.0,0.002]
[1765642785179,5.07477616,3108.1,3108.0,0.002]
[1765642785354,5.53127616,3108.1,3108.0,0.002]
[1765642785554,5.07477616,3108.1,3108.0,0.002]
[1765642785955,4.60507616,3108.1,3108.0,0.4681]
[1765642786278,1.38767647,3108.1,3108.0,0.9571]
[1765642787892,1.38767647,3108.1,3108.0,0.4681]
[1765642787893,4.60507616,3108.1,3108.0,0.4681]
[1765642788198,1.38767647,3108.1,3108.0,0.4681]
[1765642788980,4.60507616,3108.1,3108.0,0.4681]
[1765642789177,5.07477616,3108.1,3108.0,0.002]
[1765642790363,5.53127616,3108.1,3108.0,0.002]
[1765642790564,1.38767647,3108.1,3108.0,0.4681]
[1765642790995,1.38767647,3108.1,3108.0,0.9571]
[1765642791192,4.60507616,3108.1,3108.0,0.9571]
[1765642791373,5.07477616,3108.1,3108.0,0.002]
[1765642792695,6.40613265,3108.1,3108.0,0.002]
[1765642795659,6.83713665,3108.1,3108.0,0.002]
[1765642796079,5.44163265,3108.1,3108.0,0.002]
[1765642796290,4.60507616,3108.1,3108.0,0.4685]
[1765642798397,5.05687616,3108.1,3108.0,0.002]
[1765642798597,5.03087616,3108.1,3108.0,0.002]
[1765642798801,4.09707616,3108.1,3108.0,0.002]
[1765642798999,6.27031265,3108.1,3108.0,0.002]
[1765642802576,5.33651265,3108.1,3108.0,0.4685]
[1765642802782,4.09707616,3108.1,3108.0,0.4685]
[1765642802987,0.87967647,3108.1,3108.0,0.9231]
[1765642803404,1.38767647,3108.1,3108.0,0.9231]
[1765642803922,5.53887616,3108.1,3108.0,0.002]
[1765642804711,5.03087616,3108.1,3108.0,0.002]
[1765642804901,6.36369287,3108.1,3108.0,0.002]
[1765642805217,5.37369287,3108.1,3108.0,0.002]
[1765642805523,5.88169287,3108.1,3108.0,0.002]
[1765642807186,6.36369287,3108.1,3108.0,0.002]
[1765642812601,6.76919687,3108.1,3108.0,0.002]
[1765642813218,6.26119687,3108.1,3108.0,0.002]
[1765642813417,5.37369287,3108.1,3108.0,0.002]
[1765642813625,5.88169287,3108.1,3108.0,0.002]
[1765642817227,6.36369287,3108.1,3108.0,0.002]
[1765642821434,5.85569287,3108.1,3108.0,0.002]
[1765642821725,6.36369287,3108.1,3108.0,0.002]
[1765642821927,0.58047529,3108.0,3107.7,0.002]
[1765642822121,0.80720118,3107.9,3107.7,0.4591]
[1765642822430,0.29920118,3107.8,3107.7,0.4591]
[1765642822633,0.80720118,3107.8,3107.7,0.4591]
[1765642822934,0.80720118,3107.8,3107.7,0.9541]
[1765642823434,1.38767647,3107.8,3107.7,0.9541]
[1765642823746,0.29920118,3107.8,3107.7,0.9541]
[1765642823907,0.80720118,3107.8,3107.7,0.9541]
[1765642827107,1.38767647,3107.8,3107.7,0.9541]
[1765642828445,0.80720118,3107.8,3107.7,0.9541]
[1765642828613,0.29920118,3107.8,3107.7,0.9541]
[1765642829014,0.80720118,3107.8,3107.7,0.9541]
[1765642829414,0.29920118,3107.8,3107.7,0.9541]
[1765642830150,0.29920118,3107.8,3107.7,4.17191381]
[1765642830348,0.29920118,3107.8,3107.7,4.91090664]
[1765642831520,0.29920118,3107.8,3107.7,1.69309283]
[1765642831730,0.29920118,3107.8,3107.7,4.17191381]
[1765642832651,0.29920118,3107.8,3107.7,0.9541]
[1765642835050,0.29920118,3107.8,3107.7,4.17191381]
[1765642839755,0.29920118,3107.8,3107.7,0.9541]
[1765642840325,0.29920118,3107.8,3107.7,0.497]
[1765642842861,0.29920118,3107.8,3107.7,0.9778]
[1765642843336,0.29920118,3107.8,3107.7,1.39736587]
[1765642844050,0.29920118,3107.8,3107.7,4.61517968]
[1765642844754,0.29920118,3107.8,3107.7,0.42156587]
[1765642844951,0.29920118,3107.8,3107.7,0.002]
[1765642845253,0.80720118,3107.8,3107.7,0.002]
[1765642845830,1.27150118,3107.8,3107.7,0.002]
[1765642846028,1.72660118,3107.8,3107.7,0.002]
[1765642847054,1.27150118,3107.8,3107.7,0.002]
[1765642850158,0.80720118,3107.8,3107.7,0.5018]
[1765642852948,1.27150118,3107.8,3107.7,0.002]
[1765642853667,1.72660118,3107.8,3107.7,0.002]
[1765642856572,1.27150118,3107.8,3107.7,0.002]
[1765642856748,2.21822277,3107.8,3107.7,0.002]
[1765642857468,5.43593304,3107.8,3107.7,0.002]
[1765642858364,6.01640833,3107.8,3107.7,0.002]
[1765642858668,5.50840833,3107.8,3107.7,0.002]
[1765642858964,6.01640833,3107.8,3107.7,0.002]
[1765642859466,5.71720715,3107.8,3107.7,0.002]
[1765642859642,6.01675793,3107.8,3107.7,0.002]
[1765642861962,5.56445793,3107.8,3107.7,0.002]
[1765642862579,6.01675793,3107.8,3107.7,0.002]
[1765642862889,0.88002607,3107.8,3107.7,0.497]
[1765642863076,1.38802607,3107.8,3107.7,0.9694]
[1765642863775,1.38802607,3107.8,3107.7,0.497]
[1765642864468,4.60573634,3107.8,3107.7,0.497]
[1765642864668,5.06713634,3107.8,3107.7,0.002]
[1765642864869,5.94083182,3107.8,3107.7,0.002]
[1765642865489,0.29955078,3107.8,3107.7,0.497]
[1765642865695,0.80755078,3107.8,3107.7,0.497]
[1765642866492,0.80755078,3107.8,3107.7,0.002]
[1765642866686,0.80755078,3107.8,3107.7,0.497]
[1765642868778,0.80755078,3107.8,3107.7,0.9694]
[1765642868979,0.80755078,3107.8,3107.7,1.38812956]
[1765642869492,0.29955078,3107.8,3107.7,1.38812956]
[1765642869799,0.29955078,3107.8,3107.7,4.60594337]
[1765642871486,0.508,3108.1,3107.7,4.60594337]
[1765642871678,0.29951732,3108.0,3107.8,0.4724]
[1765642871872,0.508,3108.1,3108.0,0.495]
[1765642872196,0.80750309,3108.1,3108.0,0.9674]
[1765642873674,0.29950309,3108.1,3108.0,0.495]
[1765642873866,0.29950309,3108.1,3108.0,4.18490321]
[1765642874267,0.29950309,3108.1,3108.0,5.15124706]
[1765642874468,0.29950309,3108.1,3108.0,5.98814025]
[1765642883805,0.29950309,3108.1,3108.0,5.0217964]
[1765642889485,0.29950309,3108.1,3108.0,4.5493964]
[1765642890612,1.24510309,3108.1,3108.0,0.83689319]
[1765642890808,1.24510309,3108.1,3107.9,0.96634385]
[1765642891119,3.21715853,3108.4,3107.7,0.42072956]
[1765642891120,0.88370309,3108.0,3107.7,0.002]
[1765642891408,0.4766,3107.8,3107.7,0.002]
[1765642891605,0.77610309,3107.8,3107.7,0.002]
[1765642891805,1.24140309,3107.8,3107.7,0.002]
[1765642892110,1.24106467,3107.8,3107.7,0.002]
[1765642892486,0.29916467,3107.8,3107.7,0.4611]
[1765642892686,0.29916467,3107.8,3107.7,0.9297]
[1765642893312,0.29916467,3107.8,3107.7,0.4611]
[1765642894309,0.29916467,3107.8,3107.7,3.67891381]
[1765642895313,0.29916467,3107.8,3107.7,4.14751381]
[1765642895511,0.29916467,3107.8,3107.7,4.56684824]
[1765642895684,0.29916467,3107.8,3107.7,4.59902637]
[1765642895889,0.29916467,3107.8,3107.7,4.56684824]
[1765642900714,0.29916467,3107.8,3107.7,4.59902637]
[1765642900920,0.508,3108.6,3107.7,11.03465399]
[1765642901110,0.29960941,3108.5,3107.8,1.5720654]
[1765642901310,0.29960941,3108.4,3107.8,1.5720654]
[1765642901494,0.29960941,3108.3,3107.9,0.4686]
[1765642901690,0.29960941,3108.2,3107.9,0.4686]
[1765642902016,0.29960941,3108.1,3107.9,0.4686]
[1765642902215,0.29960941,3108.0,3107.9,3.68620674]
[1765642902404,0.29960941,3108.0,3107.9,4.95971769]
[1765642902723,0.29960941,3108.0,3107.9,5.41881769]
[1765642903421,0.29961106,3108.0,3107.9,5.41881769]
[1765642905233,0.29961106,3108.0,3107.9,5.45099375]
[1765642905414,0.29961106,3108.0,3107.9,5.41881769]
[1765642906405,0.29961106,3108.0,3107.9,4.95021769]
[1765642906609,0.29961106,3108.0,3107.9,5.41881769]
[1765642909621,0.29961106,3108.0,3107.9,5.45099375]
[1765642910000,0.29961106,3108.0,3107.9,5.41881769]
[1765642911117,0.29961106,3108.0,3107.9,4.95021769]
[1765642911426,0.77991106,3108.0,3107.9,4.49111769]
[1765642911803,1.24521106,3108.0,3107.9,3.21760674]
[1765642912621,0.77991106,3108.0,3107.9,3.21760674]
[1765642912923,0.29961106,3108.0,3107.9,3.67670674]
[1765642919233,0.29961106,3108.0,3107.9,4.64300079]
[1765642919403,0.29961106,3108.0,3107.9,5.51880567]
[1765642919725,0.29961106,3108.0,3107.9,5.99480567]
[1765642921106,0.29961106,3108.0,3107.9,5.51880567]
[1765642921312,0.76501106,3108.0,3107.9,4.09341162]
[1765642921506,1.26321106,3108.0,3107.9,4.09341162]
[1765642921927,1.26321106,3108.0,3107.9,3.21760674]
[1765642923407,0.76501106,3108.0,3107.9,3.21760674]
[1765642925431,0.29961106,3108.0,3107.9,3.70210674]
[1765642926747,0.29961106,3108.0,3107.9,4.17810674]
[1765642927533,0.29961106,3108.0,3107.9,3.70210674]
[1765642927721,0.29961106,3108.0,3107.9,4.44188876]
[1765642928025,0.29961106,3108.0,3107.9,4.91788876]
[1765642929425,0.29961106,3108.0,3107.9,4.44188876]
[1765642929739,3.98251427,3108.0,3107.7,0.96839988]
[1765642929937,0.405504,3107.7,3107.4,0.002]
[1765642930114,0.405504,3107.7,3106.7,0.002]
[1765642930115,0.405504,3107.0,3106.7,0.002]
[1765642930318,0.695404,3106.8,3106.7,0.002]
[1765642930644,2.70975052,3106.8,3106.7,0.002]
[1765642930809,3.20795052,3106.8,3106.7,0.002]
[1765642931011,3.33689605,3106.8,3106.7,0.002]
[1765642931445,5.08074976,3106.8,3106.7,0.002]
[1765642932318,5.66122505,3106.8,3106.7,0.002]
[1765642932526,5.75567221,3106.8,3106.7,0.002]
[1765642933246,6.65008918,3106.8,3106.7,0.002]
[1765642933448,5.75567221,3106.8,3106.7,0.002]
[1765642933649,1.79713188,3106.8,3106.7,0.002]
[1765642933858,5.01587785,3106.8,3106.7,0.002]
[1765642939074,5.42138185,3106.8,3106.7,0.002]
[1765642945682,5.52487785,3106.8,3106.7,0.002]
[1765642952896,5.93038185,3106.8,3106.7,0.002]
[1765642953072,7.17400745,3106.8,3106.7,0.002]
[1765642953373,7.04506192,3106.8,3106.7,0.002]
[1765642956295,35.41097892,3106.8,3106.7,0.002]
[1765642956700,35.53993318,3106.8,3106.7,0.002]
[1765642957167,0.405504,3106.5,3106.1,0.002]
[1765642957367,33.33328824,3106.5,3106.1,0.002]
[1765642957568,17.38914673,3106.5,3106.1,0.002]
[1765642957876,14.03014673,3106.5,3106.1,0.002]
[1765642958079,14.52304673,3106.5,3106.1,0.002]
[1765642958280,18.48304673,3106.5,3106.1,0.002]
[1765642959269,4.320647,3106.2,3106.1,0.002]
[1765642959469,5.10878214,3106.2,3106.1,0.002]
[1765642959966,5.10414484,3106.2,3106.1,0.002]
[1765642961295,16.75941684,3106.2,3106.1,0.002]
[1765642963888,16.43145084,3106.2,3106.1,0.002]
[1765642964082,18.38197833,3106.2,3106.1,0.002]
[1765642964705,18.17266933,3106.2,3106.1,0.002]
[1765642964878,10.26138633,3106.2,3106.1,0.002]
[1765642972129,0.98597929,3106.1,3105.5,0.4929]
[1765642972407,0.98597929,3105.9,3105.5,0.4929]
[1765642972591,0.80603514,3105.8,3105.5,0.4929]
[1765642972808,0.29703514,3105.7,3105.4,0.002]
[1765642973010,0.29703514,3105.6,3105.4,0.4949]
[1765642973203,0.29703514,3105.5,3105.4,0.002]
[1765642973719,0.29703514,3105.5,3105.4,0.9896]
[1765642977033,0.80603514,3105.5,3105.4,0.9896]
[1765642979922,0.29703514,3105.5,3105.4,0.9896]
[1765642980123,0.80603514,3105.5,3105.4,0.9896]
[1765642981019,0.80603514,3105.5,3105.4,4.20979707]
[1765642981225,0.80603514,3105.5,3105.4,0.9896]
[1765642983724,0.80603514,3105.5,3105.4,4.20979707]
[1765642983954,0.80603514,3105.5,3105.4,0.9896]
[1765642984423,0.80603514,3105.5,3105.4,4.20979707]
[1765642984719,0.29703514,3105.5,3105.4,4.20979707]
[1765642984921,0.80603514,3105.5,3105.4,4.63077678]
[1765642985307,0.80603514,3105.5,3105.4,1.41057971]
[1765642985727,0.80603514,3105.5,3105.4,4.63077678]
[1765642986602,0.29703514,3105.5,3105.4,4.63077678]
[1765642994435,0.509,3106.1,3105.4,11.07117092]
[1765642994643,0.29906539,3106.0,3105.9,0.4555]
[1765642994936,0.29906539,3106.0,3105.5,1.56401709]
[1765642995238,0.29906539,3105.9,3105.6,0.4569]
[1765642995441,0.29906539,3105.8,3105.7,3.21988601]
[1765642996538,0.29906539,3105.8,3105.7,4.13228601]
[1765642996706,0.29906539,3105.8,3105.7,4.97822565]
[1765642998966,0.29906539,3105.8,3105.5,4.32711043]
[1765642999145,0.29906539,3105.7,3105.6,3.21989694]
[1765642999517,0.29906539,3105.7,3105.6,3.67539694]
[1765643000140,0.29906539,3105.7,3105.6,0.4555]
[1765643000442,0.80806539,3105.7,3105.6,3.67548969]
[1765643002646,0.29906539,3105.7,3105.6,3.67548969]
[1765643002847,0.29906539,3105.7,3105.6,4.12628969]
[1765643003145,0.29906539,3105.7,3105.6,4.86113744]
[1765643004327,0.29906539,3105.7,3105.6,4.12628969]
[1765643005340,0.29906539,3105.7,3105.6,0.9063]
[1765643005518,0.79176539,3105.7,3105.6,3.21998969]
[1765643005715,0.29906539,3105.7,3105.6,3.71598969]
[1765643005920,0.29906539,3105.7,3105.6,4.21488969]
[1765643006542,0.29906539,3105.7,3105.6,3.71598969]
[1765643006727,0.79176539,3105.7,3105.4,0.002]
[1765643006932,0.29906539,3105.6,3105.4,0.002]
[1765643007130,0.4927,3105.7,3105.4,0.002]
[1765643007324,0.29902952,3105.6,3105.4,0.002]
[1765643007538,0.4927,3105.7,3105.4,0.002]
[1765643007739,0.29903417,3105.6,3105.4,0.002]
[1765643007935,0.509,3105.8,3105.4,0.002]
[1765643007936,0.7917262,3105.5,3105.4,0.002]
[1765643008726,0.2990262,3105.5,3105.4,0.498]
[1765643009434,0.2990262,3105.5,3105.4,3.71819707]
[1765643010930,0.2990262,3105.5,3105.4,3.22219707]
[1765643011129,0.9993,3105.8,3105.4,3.71819707]
[1765643011331,0.29908904,3105.7,3105.4,3.71819707]
[1765643011655,0.29908904,3105.6,3105.4,3.71819707]
[1765643011957,0.29908904,3105.5,3105.4,3.71819707]
[1765643012753,0.29908904,3105.5,3105.4,4.21709707]
[1765643013842,0.509,3105.8,3105.4,8.18104269]
[1765643014042,0.509,3105.8,3105.7,0.496]
[1765643014243,0.80818678,3105.8,3105.7,0.496]
[1765643014441,0.80818678,3105.8,3105.7,0.9949]
[1765643015653,0.29918678,3105.8,3105.7,4.21478601]
[1765643015962,0.29918678,3105.8,3105.7,4.95826396]
[1765643018373,0.29928075,3105.8,3105.7,4.95826396]
[1765643018559,0.29928075,3105.8,3105.7,4.45936396]
[1765643018857,0.29928075,3105.8,3105.7,4.95826396]
[1765643019428,0.509,3106.2,3105.7,8.17814997]
[1765643019661,0.509,3106.2,3106.1,0.496]
[1765643019843,0.80833382,3106.2,3106.1,0.496]
[1765643020242,0.80833382,3106.2,3106.1,3.71547136]
[1765643021064,0.29933382,3106.2,3106.1,3.71547136]
[1765643021264,0.80833382,3106.2,3106.1,3.71547136]
[1765643026869,0.80733382,3106.2,3106.1,4.21437136]
[1765643027871,1.79033382,3106.2,3105.3,0.4989]
[1765643028065,0.0843,3106.0,3105.5,3.22006869]
[1765643028368,0.4886,3105.5,3105.3,3.22023454]
[1765643028559,0.78793382,3105.5,3105.3,3.22023454]
[1765643028758,1.27823382,3105.5,3105.3,3.22023454]
[1765643029664,1.27823382,3105.5,3105.1,3.2224175]
[1765643029864,0.29933382,3105.5,3105.4,0.498]
[1765643030170,0.29933382,3105.5,3105.4,0.002]
[1765643030536,0.29933382,3105.5,3105.4,0.498]
[1765643030739,0.29933382,3105.5,3105.4,0.9969]
[1765643031477,0.29933382,3105.5,3105.4,0.498]
[1765643031669,0.79203382,3105.5,3105.4,0.002]
[1765643032274,0.29933382,3105.5,3105.4,0.002]
[1765643033174,0.79203382,3105.5,3105.4,0.002]
[1765643033974,1.28233382,3105.5,3105.4,0.002]
[1765643035357,0.29933382,3105.5,3105.4,0.4544]
[1765643035682,0.29933382,3105.5,3105.4,0.935]
[1765643036244,0.29933382,3105.5,3105.4,3.67459707]
[1765643036464,0.29933382,3105.5,3105.4,0.4544]
[1765643037274,0.29933382,3105.5,3105.4,3.67459707]
[1765643037475,0.508,3106.0,3105.4,7.37539414]
[1765643037679,0.29888617,3105.9,3105.7,0.4524]
[1765643037877,0.29888617,3105.8,3105.7,0.4524]
[1765643038257,0.29888617,3105.8,3105.7,4.15288601]
[1765643039545,0.509,3105.9,3105.7,4.15288601]
[1765643039761,0.29892585,3105.8,3105.7,4.15288601]
[1765643039975,0.29892585,3105.8,3105.7,3.70048601]
[1765643040166,0.29892585,3105.8,3105.7,4.15288601]
[1765643040352,0.29892585,3105.8,3105.7,4.89018314]
[1765643042264,0.76512585,3105.8,3105.7,3.21988601]
[1765643042570,0.29892585,3105.8,3105.7,3.67228601]
[1765643043290,0.29892585,3105.8,3105.7,4.15288601]
[1765643044863,0.29896903,3105.8,3105.7,4.15288601]
[1765643048367,0.58047529,3106.9,3105.7,10.11205803]
[1765643048555,0.75748947,3106.8,3105.8,1.0112058]
[1765643048785,0.75748947,3106.7,3105.7,6.43977202]
[1765643048959,0.29898947,3106.6,3105.7,6.43977202]
[1765643049159,0.29898947,3106.5,3105.7,6.43977202]
[1765643049358,0.80798947,3106.4,3105.7,6.43977202]
[1765643049560,0.29898947,3106.3,3105.7,3.21988601]
[1765643049772,0.29898947,3106.2,3105.7,3.21988601]
[1765643050099,0.29898947,3106.2,3105.4,6.44235838]
[1765643050100,0.4662,3105.8,3105.4,6.44235838]
[1765643050261,0.43998947,3105.7,3105.4,6.44235838]
[1765643050459,0.509,3105.8,3105.4,6.44235838]
[1765643050677,0.29892624,3105.7,3105.4,6.92295838]
[1765643050883,0.509,3105.8,3105.5,0.51280093]
[1765643051186,0.29892627,3105.7,3105.6,0.4524]
[1765643051584,0.76512627,3105.7,3105.4,0.002]
[1765643051908,5.14934729,3105.5,3105.4,0.002]
[1765643052077,9.12686694,3105.5,3105.4,0.002]
[1765643052398,0.98597929,3105.2,3105.1,0.002]
[1765643052608,6.01936156,3105.2,3105.1,0.002]
[1765643052895,26.01060356,3105.2,3105.1,0.002]
[1765643053213,12.67920956,3105.2,3105.1,0.002]
[1765643053360,12.46591152,3105.2,3105.1,0.002]
[1765643053965,13.48486952,3105.2,3105.1,0.002]
[1765643054162,6.370731,3105.2,3105.1,0.002]
[1765643054465,5.20730604,3105.2,3105.1,0.002]
[1765643054661,0.89642627,3105.2,3105.1,0.002]
[1765643054860,1.27512627,3105.2,3105.1,0.002]
[1765643055359,0.51,3105.3,3105.1,0.6344]
[1765643055598,0.51,3105.5,3105.1,0.6626]
[1765643055900,0.51,3105.5,3105.2,0.4524]
[1765643056074,0.51,3105.5,3105.4,0.4524]
[1765643056273,0.4662,3105.3,3105.1,0.002]
[1765643056601,0.4371699,3105.2,3105.1,0.002]
[1765643056898,0.8956699,3105.2,3105.1,0.002]
[1765643057066,0.4371699,3105.2,3105.1,0.002]
[1765643057269,0.8081699,3105.2,3105.1,0.002]
[1765643057497,0.8081699,3105.2,3105.1,3.22250819]
[1765643057700,0.2981699,3105.2,3105.1,3.67490819]
[1765643057868,0.51,3105.4,3105.1,8.2455775]
[1765643058406,0.51,3105.4,3105.3,0.4524]
[1765643058966,0.80820889,3105.4,3105.3,0.4524]
[1765643059166,0.51,3105.4,3105.3,0.4524]
[1765643059697,0.51,3105.4,3105.1,7.7931775]
[1765643059698,0.51,3105.4,3105.1,4.09206931]
[1765643059878,0.9762,3105.4,3105.1,3.22250819]
[1765643060396,0.9762,3105.4,3105.1,0.002]
[1765643062107,0.4662,3105.2,3105.1,0.002]
[1765643064427,0.51,3105.4,3105.1,0.002]
[1765643065424,0.479,3106.0,3105.3,0.4881]
[1765643065568,0.479,3106.0,3105.4,0.4759]
[1765643065569,0.51,3105.7,3105.4,0.4759]
[1765643065770,0.29816946,3105.6,3105.4,0.4759]
[1765643065970,0.51,3105.7,3105.1,0.002]
[1765643065971,0.74936946,3105.5,3105.1,0.002]
[1765643066192,0.1336,3105.2,3105.1,0.002]
[1765643066967,0.479,3105.4,3105.1,0.002]
[1765643068385,0.51,3105.3,3105.1,0.002]
[1765643069869,0.479,3105.7,3105.2,0.4759]
[1765643070075,0.80817014,3105.6,3105.3,0.4759]
[1765643070384,0.80817014,3105.5,3105.3,0.4759]
[1765643070566,0.51,3105.5,3105.3,0.4759]
[1765643070772,0.51,3105.5,3105.4,0.4759]
[1765643071005,0.29819156,3105.5,3105.4,0.4759]
[1765643071800,0.29819156,3105.5,3105.4,3.69609707]
[1765643074302,0.29819156,3105.6,3105.4,3.69609707]
[1765643074615,0.51,3105.7,3105.6,0.4759]
[1765643074801,0.80831062,3105.7,3105.6,0.4759]
[1765643075515,0.29831062,3105.7,3105.6,0.9482]
[1765643076086,0.29831062,3105.7,3105.6,4.4347491]
[1765643076288,0.51,3106.0,3105.6,8.12703879]
[1765643076619,0.29840746,3105.9,3105.7,0.4723]
[1765643076817,0.51,3106.0,3105.9,0.4759]
[1765643076985,0.29842012,3106.0,3105.9,0.4759]
[1765643077184,0.001,3106.7,3105.9,0.9482]
[1765643077383,0.80842578,3106.6,3106.0,0.4759]
[1765643077612,0.80842578,3106.5,3106.0,0.4759]
[1765643077917,0.29842578,3106.4,3106.0,0.4759]
[1765643078117,0.29842578,3106.3,3106.1,6.43894272]
[1765643078316,0.29842578,3106.2,3106.1,3.95818563]
[1765643078819,0.51,3106.5,3106.1,5.08768563]
[1765643078820,0.29842578,3106.4,3106.1,5.08768563]
[1765643079028,0.51,3106.5,3106.4,0.4759]
[1765643079315,0.80844401,3106.5,3106.4,0.4759]
[1765643080706,0.80844401,3106.5,3106.4,3.69506044]
[1765643080903,1.25964401,3106.5,3106.1,0.1813]
[1765643081228,0.4512,3106.2,3106.1,3.21943303]
[1765643082592,0.51,3106.5,3106.1,4.52054404]
[1765643082791,0.29821974,3106.4,3106.1,4.99284404]
[1765643083223,0.51,3106.5,3106.1,7.56840439]
[1765643083417,0.29831457,3106.4,3106.1,3.87663303]
[1765643083618,0.51,3106.4,3106.1,7.09610439]
[1765643083824,0.51,3106.4,3106.3,0.4759]
[1765643083987,0.80831455,3106.4,3106.3,0.4759]
[1765643084781,1.25951455,3106.4,3106.0,3.21955843]
[1765643084987,1.25951455,3106.4,3106.1,3.21945172]
[1765643084988,0.2984281,3106.3,3106.1,3.21945172]
[1765643085221,0.479,3106.3,3106.1,3.21945172]
[1765643085441,0.1336,3106.2,3106.1,3.21945172]
[1765643087443,0.1336,3106.2,3106.0,3.21957501]
[1765643089104,0.51,3106.4,3106.1,0.4759]
[1765643089849,0.51,3106.4,3106.2,3.21936771]
[1765643090444,0.001,3106.7,3106.3,0.4759]
[1765643090648,0.80838173,3106.6,3106.3,0.4759]
[1765643090945,0.29838173,3106.5,3106.3,0.4759]
[1765643091146,0.29838173,3106.4,3106.3,0.4759]
[1765643091521,0.29838173,3106.4,3106.2,6.43873542]
[1765643091522,0.74958173,3106.4,3106.1,3.21943063]
[1765643091749,0.4512,3106.2,3106.1,3.21943063]
[1765643091909,0.4512,3106.2,3105.8,6.43956468]
[1765643092243,0.1336,3106.1,3105.8,7.40551314]
[1765643093761,0.479,3106.3,3105.8,7.87781314]
[1765643095536,0.51,3106.6,3106.2,0.4992]
[1765643095738,0.29841342,3106.5,3106.2,0.4992]